lending/lending_fUSD_20250430
["ID","MTS","AMOUNT","RATE_DAILY","PERIOD"]
[359415337,1745997044012,-1100.0,0.00045863,2]
[359415338,1745997044021,-914.48065114,0.00045863,2]
[359415339,1745997044030,-482.79834214,0.00045863,2]
[359415340,1745997044039,-21323.94166007,0.00045863,2]
[359415341,1745997044049,-10631.09776165,0.00045863,3]
[359415342,1745997044058,-14885.49327928,0.00045863,3]
[359415343,1745997044068,-28101.32492213,0.00045863,3]
[359415344,1745997044077,-19028.81237742,0.00045863,3]
[359415345,1745997044086,-451.16007803,0.00045863,2]
[359415346,1745997044096,-1069.7632552,0.00045863,2]
[359415347,1745997044105,-2500.0,0.00045863,2]
[359415348,1745997044115,-580.75073956,0.00045863,2]
[359415352,1745997044290,-343.06493667,0.00045863,2]
[359415354,1745997044300,-2000.0,0.00045863,2]
[359415356,1745997044310,-2000.01867691,0.00045863,2]
[359415358,1745997044319,-191.28483407,0.00045863,2]
[359415360,1745997044328,-166.23518196,0.00045863,2]
[359415362,1745997044337,-500.0,0.00045863,10]
[359415364,1745997044348,-275.10139045,0.00045863,10]
[359415366,1745997044357,-403.26482077,0.00045863,2]
[359415368,1745997044367,-15318.29196797,0.00045863,2]
[359415385,1745997044519,-309.18648016,0.00045863,2]
[359415387,1745997044528,-170.72249729,0.00045863,2]
[359415389,1745997044537,-230.23339563,0.00045863,2]
[359415391,1745997044547,-1590.56870364,0.00045863,2]
[359415393,1745997044556,-549.13951531,0.00045863,2]
[359415395,1745997044565,-375.00706433,0.00045863,2]
[359415397,1745997044575,-391.35889014,0.00045863,2]
[359415399,1745997044584,-14449.06867987,0.00045863,2]
[359415401,1745997044596,-2107.5288732,0.00045863,2]
[359415408,1745997044661,-1138.0,0.0002882,2]
[359415410,1745997044671,-151.0,0.00045863,14]
[359415412,1745997044681,-151.0,0.00045863,14]
[359415414,1745997044691,-151.0,0.00045863,14]
[359415416,1745997044700,-158.986212,0.00045863,14]
[359415418,1745997044710,-158.977633,0.00045863,14]
[359415420,1745997044719,-15504.83821562,0.00045863,2]
[359415422,1745997044731,-4943.12446711,0.00045863,2]
[359415424,1745997044742,-1318.3450002,0.00045863,2]
[359415434,1745997044830,-5233.00675588,0.00045863,2]
[359415436,1745997044842,-2919.12999997,0.00045863,2]
[359415438,1745997044853,-1349.25,0.00045863,2]
[359415440,1745997044865,-506.72,0.00045863,2]
[359415442,1745997044876,-1890.44,0.00045863,2]
[359415517,1745997045777,-1138.0,0.0003182,2]
[359415518,1745997045788,-104.67698032,0.0003482,2]
[359415519,1745997045863,-1015.32301968,0.0003482,2]
[359415520,1745997045873,-151.0,0.00045855,2]
[359415521,1745997045883,-2471.0,0.00045863,7]
[359415522,1745997045893,-86240.93785428,0.00045863,2]
[359415523,1745997046093,-472.35,0.00045863,2]
[359415525,1745997046216,-1127.49545919,0.00045863,2]
[359415526,1745997046228,-28482.64096765,0.00045863,2]
[359415527,1745997046240,-901.9,0.00045863,2]
[359415538,1745997046477,-3712.08920011,0.00045863,2]
[359415995,1745997122458,200.0,0.0003345,117]
[359416084,1745997246993,300.0,0.00037808,30]
[359416085,1745997362119,200.0,0.0003345,117]
[359416086,1745997362209,200.0,0.00030654,117]
[359416087,1745997372823,167.53,0.00037808,30]
[359416088,1745997510835,3104.796,0.0003761,49]
[359416089,1745997511158,176.89,0.0003761,49]
[359416090,1745997704189,30308.68816553,0.00037808,30]
[359416098,1745997883016,150.0,0.000378,30]
[359416099,1745997910105,500.0,0.000154,2]
[359416100,1745997910126,1000.0,0.000154,2]
[359416101,1745997910149,683.73960444,0.000154,2]
[359416105,1745997934880,5127.63,0.00013699,2]
[359416106,1745997935234,5127.63,0.00013699,2]
[359416107,1745997935558,5127.63,0.00013699,2]
[359416108,1745997935883,181.44806286,0.00013699,2]
[359416109,1745997935905,4946.18193714,0.00013699,2]
[359416110,1745997936182,5127.63,0.00013699,2]
[359416111,1745997936535,5127.63,0.00013699,2]
[359416112,1745997936936,5127.63,0.00013699,2]
[359416113,1745997937325,5127.63,0.00013699,2]
[359416114,1745997937648,5127.63,0.00013699,2]
[359416115,1745997937955,5127.63,0.00013699,2]
[359416116,1745997938421,5127.63,0.00013699,2]
[359416117,1745997938728,-200.0,0.000199,2]
[359416118,1745997938756,5127.63,0.00013699,2]
[359416119,1745997939140,5127.63,0.00013699,2]
[359416120,1745997939558,5127.63,0.00013699,2]
[359416121,1745997939925,5127.63,0.00013699,2]
[359416122,1745997940315,5127.63,0.00013699,2]
[359416123,1745997940671,5127.63,0.00013699,2]
[359416124,1745997941039,5127.63,0.00013699,2]
[359416125,1745997941386,5127.63,0.00013699,2]
[359416126,1745997941705,5127.80234665,0.00013699,2]
[359416127,1745997942140,-298.88131972,0.000199,2]
[359416128,1745997944080,-391.92127316,0.000199,2]
[359416129,1745997944103,-153.26026647,0.000199,3]
[359416130,1745997944127,-571.17732568,0.000199,2]
[359416131,1745997944151,-300.0,0.00019999,2]
[359416132,1745997944175,-495.73874607,0.0002,2]
[359416133,1745997944201,-152287.90238862,0.0002,2]
[359416134,1745997944985,1000.0,0.00037808,30]
[359416135,1745997945528,-476.19386295,0.0002,2]
[359416136,1745997948284,-218.02481733,0.0002,2]
[359416137,1745997948825,-218.02481733,0.0002,2]
[359416138,1745997950556,-100000.0,0.0002,2]
[359416139,1745997951160,-100000.0,0.0002,2]
[359416140,1745997951671,-100000.0,0.0002,2]
[359416141,1745997952198,-100000.0,0.0002,2]
[359416142,1745997952704,-100000.0,0.0002,2]
[359416143,1745997953250,-100000.0,0.0002,2]
[359416144,1745997954302,-153.23236294,0.0001983,2]
[359416145,1745998007833,-276.6296521,0.000198,2]
[359416155,1745998050560,161.78,0.00032877,30]
[359416158,1745998123987,558.25302769,0.00035,30]
[359416159,1745998146186,208.01880847,0.000372,120]
[359416160,1745998151205,208.01880847,0.000372,120]
[359416515,1745998211242,179.28187304,0.000198,5]
[359416522,1745998231976,-30.76483526,0.000198,2]
[359416524,1745998231986,-200.0,0.00019815,2]
[359416526,1745998231996,-431.10578584,0.00019829,2]
[359416527,1745998232023,-768.89421416,0.00019829,2]
[359416528,1745998232033,-300.0,0.00019829,2]
[359416529,1745998232042,-3348.42252441,0.0001983,2]
[359416530,1745998232054,-272.80967872,0.0001983,2]
[359416531,1745998232070,-7326.96031864,0.0001983,2]
[359416532,1745998232079,-2302.92175584,0.0001987,2]
[359416533,1745998232088,-7698.67526017,0.00019889,2]
[359416534,1745998232097,-3206.0,0.0001989,2]
[359416535,1745998232107,-850.0,0.00019899,2]
[359416536,1745998232116,-2278.8221,0.000199,2]
[359416537,1745998232126,-523.1366,0.000199,2]
[359416538,1745998232135,-739.3402875,0.000199,2]
[359416539,1745998232145,-200.31915505,0.000199,2]
[359416540,1745998232154,-286.58869225,0.000199,2]
[359416541,1745998232163,-6732.8258,0.000199,2]
[359416542,1745998232173,-1000.0,0.000199,2]
[359416543,1745998232182,-2279.5855,0.000199,2]
[359416544,1745998232191,-2030.42358329,0.000199,2]
[359416545,1745998232201,-282.6119774,0.000199,3]
[359416546,1745998232211,-593.86839526,0.000199,2]
[359416547,1745998232220,-2500.0,0.000199,2]
[359416548,1745998232230,-13203.73524205,0.000199,2]
[359416549,1745998232240,-124067.15396223,0.000199,2]
[359416550,1745998232289,-1302.66754437,0.000199,2]
[359416551,1745998232477,-0.0834337,0.000199,2]
[359416552,1745998232490,-636.10140926,0.000199,2]
[359416553,1745998232501,-341.65271422,0.000199,2]
[359416555,1745998232511,-317.45647249,0.000199,2]
[359416557,1745998232521,-199.93768811,0.000199,2]
[359416559,1745998232532,-739.34028751,0.000199,2]
[359416561,1745998232541,-250.0,0.00019915,2]
[359416563,1745998232551,-200.0,0.00019915,2]
[359416564,1745998232562,-1522.39905892,0.0001997,2]
[359416567,1745998232574,-4168.56843775,0.0001997,2]
[359416569,1745998232585,-8569.36641444,0.0001997,2]
[359416571,1745998232595,-500.0,0.00019973,2]
[359416573,1745998232604,-501.27059628,0.00019973,2]
[359416575,1745998232613,-500.0,0.00019973,2]
[359416576,1745998232623,-514.21269799,0.00019973,2]
[359416578,1745998232634,-160.96109272,0.00019973,2]
[359416580,1745998232646,-486.29719857,0.00019973,2]
[359416583,1745998232657,-61.50868241,0.00019973,2]
[359416585,1745998232667,-500.0,0.00019973,2]
[359416587,1745998232676,-302.91204673,0.00019973,2]
[359416589,1745998232685,-221.54422466,0.00019973,2]
[359416691,1745998237912,-278.45577534,0.00019973,2]
[359416692,1745998237923,-500.0,0.00019973,2]
[359416693,1745998237933,-160.03314491,0.00019973,2]
[359416694,1745998237945,-500.0,0.00019973,2]
[359416695,1745998237955,-507.24324575,0.00019973,2]
[359416696,1745998237965,-500.0,0.00019973,2]
[359416697,1745998237975,-153.48306685,0.00019973,2]
[359416698,1745998237986,-313.40783682,0.00019973,2]
[359416699,1745998237996,-500.0,0.00019973,2]
[359416700,1745998238006,-500.0,0.00019973,2]
[359416701,1745998238015,-165.81307115,0.00019979,2]
[359416702,1745998238025,-610.54298937,0.00019979,2]
[359416703,1745998238034,-1749.42089149,0.0001998,2]
[359416704,1745998238049,-47982.29158587,0.0001998,2]
[359416705,1745998238060,-1777.95110902,0.0001998,2]
[359416706,1745998238089,-20216.15447838,0.0001998,2]
[359416707,1745998238099,-165.27,0.0001999,2]
[359416708,1745998238108,-165.27,0.0001999,2]
[359416709,1745998238117,-165.27,0.0001999,2]
[359416710,1745998238127,-165.27,0.0001999,2]
[359416711,1745998238136,-165.27,0.0001999,2]
[359416712,1745998238145,-165.27,0.0001999,2]
[359416713,1745998238154,-165.27,0.0001999,2]
[359416714,1745998238164,-165.27,0.0001999,2]
[359416715,1745998238173,-165.27,0.0001999,2]
[359416716,1745998238183,-165.27,0.0001999,2]
[359416717,1745998238192,-500.0,0.00019999,2]
[359416718,1745998238201,-634.46377778,0.00019999,2]
[359416719,1745998238211,-21892.00507512,0.00019999,2]
[359416720,1745998238220,-280.29803217,0.00019999,2]
[359416721,1745998238230,-450.44831221,0.0002,2]
[359416722,1745998238240,-98990.30684806,0.0002,2]
[359416723,1745998238249,-5177732.47021463,0.0002,2]
[359416725,1745998238275,-2450.89237849,0.0002,2]
[359416730,1745998238315,-1421.91293233,0.0002,2]
[359416731,1745998238366,-3586.85908103,0.0002,2]
[359416732,1745998238377,-533.69583096,0.0002,2]
[359416734,1745998240163,-1007.5722947,0.0002,2]
[359416738,1745998245048,-2050.0,0.0002,2]
[359416784,1745998245940,-3434.12887577,0.0002,2]
[359417659,1745998305096,2000.0,0.000378,30]
[359417660,1745998308426,2268.0,0.00025,120]
[359417662,1745998453879,250.0,0.00017,2]
[359417663,1745998454961,300.0,0.00019,2]
[359417664,1745998488517,2061.341022,0.000378,30]
[359417665,1745998507018,1532.6,0.000378,30]
[359417666,1745998538804,1998.27,0.0001765,2]
[359417667,1745998543291,3146.398707,0.000378,31]
[359417668,1745998617217,152.03,0.0001927,2]
[359417669,1745998664123,1000.0,0.00037808,30]
[359417670,1745998742699,200.0,0.00019158,2]
[359417671,1745998795448,1013.73366178,0.000378,30]
[359417672,1745998803600,23900.0,0.00019135,2]
[359417673,1745998804274,-152.03,0.00019318,2]
[359417674,1745998804302,-125.40584574,0.00019342,2]
[359417675,1745998810509,1546.11,0.00018903,2]
[359417676,1745998811945,-200.0,0.0001933,2]
[359417677,1745998811970,-124.59415426,0.00019342,2]
[359417678,1745998811996,-75.40584574,0.00019342,2]
[359417679,1745998821996,199.8688,0.00037808,30]
[359417680,1745998827464,264.87,0.00018886,2]
[359417681,1745998843849,250.0,0.00019135,7]
[359417682,1745998848811,150.0,0.000378,30]
[359417683,1745998852182,200.0,0.00037808,30]
[359417684,1745998864405,1600.0,0.00019135,2]
[359417685,1745998864981,1600.0,0.00026311,120]
[359417686,1745998865199,1600.0,0.00028703,120]
[359417687,1745998924665,1000.0,0.00019135,2]
[359417688,1745998981972,-690.98018662,0.00019331,2]
[359417689,1745998981996,-124.59415426,0.00019342,2]
[359417690,1745998982019,-152.03,0.00019366,2]
[359417691,1745998982043,-164.07,0.00019418,2]
[359417692,1745998982067,-250.0,0.00019545,2]
[359417693,1745998982092,-200.0,0.00019545,2]
[359417694,1745998982116,-246.94945882,0.0001955,2]
[359417695,1745998982140,-1715.46,0.00019568,2]
[359417696,1745998982163,-256.06370205,0.00019568,2]
[359417697,1745998982185,-69172.52419751,0.00019568,2]
[359417698,1745998982209,-690.98018662,0.00019658,2]
[359417699,1745998982233,-1047.71,0.00019671,2]
[359417700,1745998982257,-2645.47,0.00019671,2]
[359417701,1745998982281,-9999.99,0.00019671,2]
[359417702,1745998982304,-690.98018663,0.00019733,2]
[359417703,1745998982327,-631.03808419,0.00019779,2]
[359417704,1745998982351,-507.5176,0.00019799,2]
[359417705,1745998982378,-1000.0,0.00019799,2]
[359417706,1745998982402,-1200.0,0.00019799,2]
[359417707,1745998982426,-300.0,0.00019799,2]
[359417708,1745998982449,-2500.0,0.000198,2]
[359417709,1745998982477,-175.27926066,0.000198,2]
[359417710,1745998982501,-175.27926065,0.00019814,2]
[359417711,1745998982527,-175.27926065,0.00019829,2]
[359417712,1745998982551,-175.27926065,0.00019843,2]
[359417713,1745998982574,-25032.9942831,0.00019853,2]
[359417714,1745998982598,-2642.31,0.00019853,2]
[359417715,1745998982621,-523.2725,0.00019853,2]
[359417716,1745998982644,-850.0,0.00019857,2]
[359417717,1745998982668,-175.27926065,0.00019857,2]
[359417718,1745998982692,-25032.99428302,0.00019858,2]
[359417719,1745998982715,-25032.99428302,0.00019863,2]
[359417720,1745998982739,-25032.99428302,0.00019869,2]
[359417721,1745998982763,-175.27926065,0.00019871,2]
[359417722,1745998982787,-500.0,0.00019873,2]
[359417723,1745998982809,-169.91852973,0.00019873,2]
[359417724,1745998982831,-500.0,0.00019873,2]
[359417725,1745998982856,-500.0,0.00019873,2]
[359417726,1745998982879,-500.0,0.00019873,2]
[359417727,1745998982904,-502.01998914,0.00019873,2]
[359417728,1745998982926,-500.0,0.00019873,2]
[359417729,1745998982948,-500.0,0.00019873,2]
[359417730,1745998982971,-504.36773073,0.00019873,2]
[359417731,1745998982992,-500.0,0.00019873,2]
[359417732,1745998983015,-500.0,0.00019873,2]
[359417733,1745998983044,-25032.99428302,0.00019874,2]
[359417734,1745998983068,-25032.99428302,0.00019879,2]
[359417735,1745998983091,-165.27,0.0001988,2]
[359417736,1745998983115,-25032.99428302,0.00019884,2]
[359417737,1745998983141,-165.27,0.00019885,2]
[359417738,1745998983166,-175.27926065,0.00019886,2]
[359417739,1745998983191,-165.27,0.00019889,2]
[359417740,1745998983216,-165.27,0.00019889,2]
[359417741,1745998983240,-165.27,0.00019889,2]
[359417742,1745998983267,-165.27,0.00019889,2]
[359417743,1745998983293,-25032.99428302,0.0001989,2]
[359417744,1745998983318,-165.27,0.0001989,2]
[359417745,1745998983342,-165.27,0.0001989,2]
[359417746,1745998983367,-25032.99428302,0.00019895,2]
[359417747,1745998983392,-3337.774,0.00019898,2]
[359417748,1745998983417,-249.781,0.00019898,2]
[359417749,1745998983442,-98266.6275,0.00019899,2]
[359417750,1745998983465,-375.71253552,0.00019899,2]
[359417751,1745998983490,-279.3209557,0.00019899,2]
[359417752,1745998983651,-160.86483543,0.00019899,2]
[359417753,1745998983677,-880.77,0.000199,2]
[359417754,1745998983700,-447.2031,0.000199,2]
[359417755,1745998983724,-1000.0,0.000199,2]
[359417756,1745998983748,-166.4913835,0.000199,2]
[359417757,1745998983776,-500.0,0.000199,2]
[359417758,1745998983799,-7994.9383,0.000199,2]
[359417759,1745998983821,-456.15767579,0.000199,2]
[359417760,1745998983845,-245.6474505,0.000199,2]
[359417761,1745998983871,-25032.99428302,0.000199,2]
[359417762,1745998983897,-166.80756493,0.000199,2]
[359417763,1745998983921,-8802.49016136,0.000199,2]
[359417764,1745998983944,-199.93768811,0.000199,2]
[359417765,1745998983967,-175.27926065,0.000199,2]
[359417766,1745998983990,-1444.94524666,0.000199,2]
[359417767,1745998984015,-1998.27,0.00019914,2]
[359417768,1745998984042,-165.27,0.00019943,2]
[359417769,1745998984070,-246.95,0.00019953,2]
[359417770,1745998984094,-150.99,0.00019953,2]
[359417771,1745998984116,-2253.29,0.00019953,2]
[359417772,1745998984139,-4209.35,0.00019953,2]
[359417773,1745998984162,-42775.33,0.00019953,2]
[359417774,1745998984186,-9345.35,0.00019953,2]
[359417775,1745998984209,-500.0,0.00019973,2]
[359417776,1745998984233,-500.0,0.00019973,2]
[359417777,1745998984258,-500.0,0.00019973,2]
[359417778,1745998984282,-500.0,0.00019973,2]
[359417779,1745998984306,-500.0,0.00019973,2]
[359417780,1745998984330,-500.0,0.00019973,2]
[359417781,1745998984354,-500.0,0.00019973,2]
[359417782,1745998984378,-605.49057199,0.00019973,2]
[359417783,1745998984401,-500.0,0.00019973,2]
[359417784,1745998984423,-500.0,0.00019973,2]
[359417785,1745998984447,-301.82266464,0.00019973,2]
[359417786,1745998984471,-500.0,0.00019973,2]
[359417787,1745998984495,-500.0,0.00019973,2]
[359417788,1745998984517,-501.42623263,0.00019973,2]
[359417789,1745998984541,-500.0,0.00019973,2]
[359417790,1745998984566,-500.0,0.00019973,2]
[359417791,1745998984589,-500.0,0.00019973,2]
[359417792,1745998984615,-500.23006761,0.00019973,2]
[359417793,1745998984639,-500.0,0.00019973,2]
[359417794,1745998984663,-500.0,0.00019973,2]
[359417795,1745998984686,-500.0,0.00019973,2]
[359417796,1745998984709,-500.0,0.00019973,2]
[359417797,1745998984732,-500.90262275,0.00019973,2]
[359417798,1745998984756,-500.0,0.00019973,2]
[359417799,1745998984781,-500.86272975,0.00019973,2]
[359417800,1745998984803,-504.16619613,0.00019973,2]
[359417801,1745998984825,-206.28606326,0.00019973,2]
[359417802,1745998984848,-500.0,0.00019973,2]
[359417803,1745998984870,-4205.0573301,0.00019986,2]
[359417804,1745998984892,-2851.2738953,0.00019986,2]
[359417805,1745998984913,-6332.4344414,0.00019986,2]
[359417806,1745998984936,-211973.6848254,0.00019986,2]
[359417807,1745998984958,-300.0,0.00019999,2]
[359417808,1745998984982,-464.8996168,0.00019999,2]
[359417809,1745998985006,-300.0,0.00019999,2]
[359417810,1745998985028,-500.0,0.00019999,2]
[359417811,1745998985049,-634.46377778,0.00019999,2]
[359417812,1745998985072,-500.0,0.00019999,2]
[359417813,1745998985094,-675.17,0.00019999,2]
[359417814,1745998985116,-999.99,0.00019999,2]
[359417815,1745998985139,-9899.57112739,0.0002,2]
[359417816,1745998985162,-450.44831221,0.0002,2]
[359417817,1745998985188,-189143.93110474,0.0002,2]
[359417818,1745998985901,470.0,0.00037808,30]
[359417819,1745998998402,470.0,0.00037808,30]
[359417820,1745999011730,156.01410638,0.000372,120]
[359417821,1745999011793,470.0,0.00037808,30]
[359417822,1745999014145,500.0,0.0003501,120]
[359417823,1745999016652,156.01410635,0.000372,120]
[359417824,1745999021666,156.01410635,0.000372,120]
[359417825,1745999026656,156.01410635,0.000372,120]
[359417826,1745999032822,161.77,0.00032877,30]
[359417827,1745999057498,150.0,0.00033,30]
[359417828,1745999080651,2676.0,0.00037808,30]
[359417829,1745999128055,-1200.0,0.0001967,2]
[359417830,1745999128081,-300.0,0.0001967,2]
[359417831,1745999128108,-608.0,0.00019671,2]
[359417832,1745999144168,1000.0,0.00037808,30]
[359417833,1745999151267,200.0,0.00037808,30]
[359417835,1745999179437,-620.0,0.00019493,2]
[359417836,1745999199076,50000.0,0.00037808,30]
[359417837,1745999206283,50000.0,0.00037808,31]
[359417838,1745999209310,50000.0,0.00037808,32]
[359417839,1745999212638,50000.0,0.00037808,33]
[359417840,1745999215909,50000.0,0.00037808,34]
[359417853,1745999326505,452.63,0.00019124,2]
[359417861,1745999345320,500.0,0.00032876,120]
[359417862,1745999345559,500.0,0.00032876,120]
[359417863,1745999345833,500.0,0.00032876,120]
[359417864,1745999346079,500.0,0.00032876,120]
[359417865,1745999346351,500.0,0.00032876,120]
[359417866,1745999346578,500.0,0.00032876,120]
[359417867,1745999347165,500.0,0.00032876,120]
[359417868,1745999347424,500.0,0.00032876,120]
[359417869,1745999347645,500.0,0.00032876,120]
[359417870,1745999347888,500.0,0.00032876,120]
[359417871,1745999348141,500.0,0.00032876,120]
[359417872,1745999348390,500.0,0.00032876,120]
[359417873,1745999348665,500.0,0.00032876,120]
[359417874,1745999348905,266.06224373,0.00032876,120]
[359417968,1745999382099,162.32,0.00015453,2]
[359417969,1745999389328,150.0,0.00019097,2]
[359417972,1745999432204,-316.28000052,0.00019493,2]
[359417973,1745999432250,-1545.67999948,0.00019493,2]
[359417974,1745999432260,-200.0,0.00019497,2]
[359417975,1745999432270,-250.0,0.00019497,2]
[359417976,1745999432280,-250.0,0.00019501,2]
[359417977,1745999432290,-200.0,0.00019611,2]
[359417978,1745999432301,-1200.0,0.0001967,2]
[359417979,1745999432311,-300.0,0.0001967,2]
[359417980,1745999432321,-5482.89770835,0.00019671,2]
[359417981,1745999432332,-2807.33381103,0.00019671,2]
[359417982,1745999432363,-1101.75848062,0.00019671,2]
[359417983,1745999432373,-334.9774,0.00019773,2]
[359417984,1745999432383,-783.26409538,0.00019779,2]
[359417985,1745999432395,-981.43590462,0.00019779,2]
[359417986,1745999432404,-500.0,0.0001979,2]
[359417987,1745999432414,-333.92902268,0.00019799,2]
[359417994,1745999435790,500.0,0.000378,30]
[359417998,1745999438404,-666.07097732,0.00019799,2]
[359417999,1745999438413,-1000.0,0.00019799,2]
[359418000,1745999438423,-224.7035,0.00019799,2]
[359418001,1745999438433,-500.0,0.00019873,2]
[359418002,1745999438443,-515.11545751,0.00019873,2]
[359418003,1745999438452,-393.37197229,0.00019873,2]
[359418004,1745999438462,-500.0,0.00019873,2]
[359418005,1745999438471,-500.0,0.00019873,2]
[359418006,1745999438481,-500.77379964,0.00019873,2]
[359418007,1745999438490,-500.0,0.00019873,2]
[359418008,1745999438499,-500.0,0.00019873,2]
[359418009,1745999438508,-631.03808419,0.00019886,2]
[359418010,1745999438518,-7442.2205,0.00019886,2]
[359418011,1745999438527,-850.0,0.00019899,2]
[359418012,1745999438537,-236.97976533,0.00019899,2]
[359418013,1745999438547,-154.45645314,0.00019899,2]
[359418014,1745999438556,-2697.8771,0.000199,2]
[359418016,1745999438566,-2500.0,0.000199,2]
[359418018,1745999438575,-8740.6536,0.000199,2]
[359418020,1745999438584,-27958.01832817,0.000199,2]
[359418022,1745999438593,-47248.00458567,0.000199,2]
[359418024,1745999438602,-963.29683112,0.000199,2]
[359418026,1745999438611,-295.14381851,0.000199,2]
[359418028,1745999438620,-395.9122635,0.000199,2]
[359418030,1745999438629,-500.0,0.00019973,2]
[359418032,1745999438638,-507.19426611,0.00019973,2]
[359418034,1745999438648,-500.0,0.00019973,2]
[359418035,1745999438657,-501.88070055,0.00019973,2]
[359418036,1745999438666,-280.17388614,0.00019973,2]
[359418037,1745999438675,-500.0,0.00019973,2]
[359418038,1745999438683,-500.0,0.00019973,2]
[359418039,1745999438692,-208.35397282,0.00019973,2]
[359418040,1745999438700,-500.0,0.00019973,2]
[359418041,1745999438709,-500.0,0.00019973,2]
[359418042,1745999438717,-301.84461807,0.00019973,2]
[359418044,1745999438726,-500.0,0.00019973,2]
[359418045,1745999438734,-243.25265261,0.00019973,2]
[359418047,1745999438743,-500.0,0.00019973,2]
[359418048,1745999438750,-501.90027515,0.00019973,2]
[359418050,1745999438757,-500.0,0.00019973,2]
[359418052,1745999438764,-509.1493322,0.00019973,2]
[359418053,1745999438771,-500.0,0.00019973,2]
[359418054,1745999438778,-3031.8290582,0.00019986,2]
[359418055,1745999438787,-40065.0238673,0.00019986,2]
[359418056,1745999438797,-2120.6598312,0.00019986,2]
[359418057,1745999438806,-74267.1446318,0.00019986,2]
[359418058,1745999438814,-4518.6114919,0.00019986,2]
[359418059,1745999438823,-151257.2671843,0.00019986,2]
[359418061,1745999438832,-16751.1789399,0.00019986,2]
[359418063,1745999438842,-262.99877486,0.00019999,2]
[359418065,1745999438851,-195.52466899,0.00019999,2]
[359418067,1745999438861,-1000.0,0.00019999,2]
[359418069,1745999438871,-1000.0,0.00019999,2]
[359418072,1745999438885,-1000.0,0.00019999,2]
[359418075,1745999438905,-1000.0,0.00019999,2]
[359418078,1745999438922,-1000.0,0.00019999,2]
[359418081,1745999438942,-1000.0,0.00019999,2]
[359418083,1745999438960,-1000.0,0.00019999,2]
[359418086,1745999438978,-639.0,0.00019999,2]
[359418090,1745999438998,-311.45421426,0.00019999,2]
[359418092,1745999439018,-670.59290321,0.00019999,2]
[359418095,1745999439038,-311.30877653,0.00019999,2]
[359418098,1745999439057,-225.22415611,0.0002,2]
[359418102,1745999439076,-1838550.70664102,0.0002,2]
[359418104,1745999439092,-39742.26236548,0.0002,2]
[359418107,1745999439109,-301.26767643,0.0002,2]
[359418109,1745999439128,-10000.0,0.0002,2]
[359418111,1745999439141,-1482.76242669,0.0002,2]
[359418114,1745999439160,-481.2480226,0.0002,2]
[359418116,1745999439174,-18839.17559419,0.0002,2]
[359418119,1745999439188,-3224236.88726677,0.0002,2]
[359418122,1745999439209,-1259.7317472,0.0002,2]
[359418287,1745999440924,-995.77453654,0.0002,2]
[359418288,1745999440935,-9429.67100035,0.0002,2]
[359418289,1745999440946,-614.704,0.0002,2]
[359418290,1745999440956,-1112.39156805,0.0002,2]
[359418358,1745999443766,-1567.17304762,0.0002,2]
[359418364,1745999443814,-322.41500847,0.0002,2]
[359418380,1745999443991,-2441.93467861,0.0002,2]
[359418381,1745999444003,-592.91059234,0.0002,2]
[359418383,1745999444018,-348.25,0.0002,2]
[359418561,1745999446176,-2306.43260412,0.0002,2]
[359418563,1745999446187,-659.10500533,0.0002,2]
[359418566,1745999446199,-345.50667765,0.0002,2]
[359418568,1745999446210,-571.72441058,0.0002,2]